[Event "Early-Titled-Tuesday-Blitz-March-19-2024"]
[Site "Chess.com"]
[Date "2024.03.19"]
[Round "11"]
[White "RantomOpening"]
[Black "yonaltimur"]
[Result "0-1"]
[WhiteElo "2590"]
[BlackElo "2409"]
[TimeControl "180+1"]
[EndTime "10:05:22 PDT"]
[Termination "yonaltimur won by resignation"]

1. c4 {[%clk 0:03:00.9]} 1... e5 {[%clk 0:02:59.9]} 2. Nc3 {[%clk 0:02:59.2]}
2... Nf6 {[%clk 0:03:00.2]} 3. Nf3 {[%clk 0:02:59.4]} 3... Nc6 {[%clk
0:02:59.9]} 4. e3 {[%clk 0:03:00.1]} 4... d5 {[%clk 0:02:59.7]} 5. cxd5 {[%clk
0:03:00.9]} 5... Nxd5 {[%clk 0:03:00.6]} 6. Bb5 {[%clk 0:02:57.6]} 6... Nxc3
{[%clk 0:02:56.7]} 7. bxc3 {[%clk 0:02:52.9]} 7... Bd6 {[%clk 0:02:54.9]} 8. d4
{[%clk 0:02:50.3]} 8... exd4 {[%clk 0:02:51.5]} 9. cxd4 {[%clk 0:02:51.2]} 9...
O-O {[%clk 0:02:50.6]} 10. O-O {[%clk 0:02:50.1]} 10... Bd7 {[%clk 0:02:49.5]}
11. Rb1 {[%clk 0:02:44.7]} 11... a6 {[%clk 0:02:48.7]} 12. Be2 {[%clk
0:02:43.7]} 12... b5 {[%clk 0:02:39.2]} 13. e4 {[%clk 0:02:43.1]} 13... f6
{[%clk 0:02:37.4]} 14. e5 {[%clk 0:02:41.3]} 14... fxe5 {[%clk 0:02:37.2]} 15.
dxe5 {[%clk 0:02:41]} 15... Be7 {[%clk 0:02:27.2]} 16. Qc2 {[%clk 0:02:22.6]}
16... Kh8 {[%clk 0:02:13.4]} 17. Rd1 {[%clk 0:02:21.6]} 17... Qe8 {[%clk
0:02:08.1]} 18. Bd3 {[%clk 0:02:14.4]} 18... Nb4 {[%clk 0:02:04.7]} 19. Rxb4
{[%clk 0:02:09.8]} 19... Bxb4 {[%clk 0:02:05.6]} 20. Bxh7 {[%clk 0:02:03.6]}
20... Be7 {[%clk 0:01:56.5]} 21. Bg6 {[%clk 0:02:02.1]} 21... Qc8 {[%clk
0:01:56.3]} 22. Qe4 {[%clk 0:01:54.7]} 22... Bf5 {[%clk 0:01:55.5]} 23. Qc6
{[%clk 0:01:48.6]} 23... Bxg6 {[%clk 0:01:52.4]} 24. Qxg6 {[%clk 0:01:49.5]}
24... Qf5 {[%clk 0:01:52.7]} 25. Qxf5 {[%clk 0:01:45.3]} 25... Rxf5 {[%clk
0:01:52.8]} 26. Rd7 {[%clk 0:01:46]} 26... Rd8 {[%clk 0:01:51]} 27. Rxd8+ {[%clk
0:01:46.2]} 27... Bxd8 {[%clk 0:01:51.9]} 28. Be3 {[%clk 0:01:44.7]} 28... Be7
{[%clk 0:01:50.9]} 29. Kf1 {[%clk 0:01:39.9]} 29... c5 {[%clk 0:01:50.8]} 30.
Ke2 {[%clk 0:01:40.4]} 30... c4 {[%clk 0:01:51.2]} 31. Bd4 {[%clk 0:01:37.3]}
31... Kg8 {[%clk 0:01:50.6]} 32. g4 {[%clk 0:01:37.6]} 32... Rf4 {[%clk
0:01:50]} 33. h3 {[%clk 0:01:35.3]} 33... Kf8 {[%clk 0:01:45.3]} 34. Ke3 {[%clk
0:01:32.8]} 34... g5 {[%clk 0:01:43.4]} 35. e6 {[%clk 0:01:33.2]} 35... Ke8
{[%clk 0:01:41.2]} 36. Ne5 {[%clk 0:01:28.5]} 36... Bf6 {[%clk 0:01:36.8]} 37.
Nc6 {[%clk 0:01:25.7]} 37... Bxd4+ {[%clk 0:01:31.4]} 38. Nxd4 {[%clk
0:01:26.6]} 38... Ke7 {[%clk 0:01:31.8]} 39. h4 {[%clk 0:01:13.8]} 39... Rxd4
{[%clk 0:00:58.9]} 40. Kxd4 {[%clk 0:01:08.5]} 40... gxh4 {[%clk 0:00:59.8]} 41.
g5 {[%clk 0:00:59.8]} 41... h3 {[%clk 0:00:59.3]} 42. g6 {[%clk 0:01:00.2]}
42... Kf6 {[%clk 0:00:59.7]} 43. Kd5 {[%clk 0:00:54.4]} 43... h2 {[%clk
0:00:56.9]} 44. g7 {[%clk 0:00:54.3]} 44... h1=Q+ {[%clk 0:00:56.2]} 45. Kd6
{[%clk 0:00:53.9]} 45... Kxg7 {[%clk 0:00:56.1]} 46. e7 {[%clk 0:00:53]} 46...
Qd1+ {[%clk 0:00:55.6]} 47. Kc7 {[%clk 0:00:52.8]} 47... Kf7 {[%clk 0:00:55.5]}
0-1

[Event "Early-Titled-Tuesday-Blitz-March-19-2024"]
[Site "Chess.com"]
[Date "2024.03.19"]
[Round "11"]
[White "JosefineHeinemann"]
[Black "Winner_7777"]
[Result "1-0"]
[WhiteElo "2511"]
[BlackElo "2608"]
[TimeControl "180+1"]
[EndTime "10:05:24 PDT"]
[Termination "JosefineHeinemann won on time"]

1. e4 {[%clk 0:03:00.9]} 1... c5 {[%clk 0:02:59.9]} 2. c3 {[%clk 0:03:00.3]}
2... d5 {[%clk 0:02:59.9]} 3. exd5 {[%clk 0:03:00.1]} 3... Qxd5 {[%clk
0:03:00.8]} 4. d4 {[%clk 0:03:00]} 4... g6 {[%clk 0:03:01.2]} 5. Nf3 {[%clk
0:02:56.8]} 5... Nf6 {[%clk 0:03:00.2]} 6. Nbd2 {[%clk 0:02:56.4]} 6... cxd4
{[%clk 0:02:58.6]} 7. Bc4 {[%clk 0:02:56.5]} 7... Qc5 {[%clk 0:02:40.4]} 8. Qb3
{[%clk 0:02:55.5]} 8... e6 {[%clk 0:02:34.1]} 9. Nxd4 {[%clk 0:02:53.6]} 9...
Nc6 {[%clk 0:02:26.7]} 10. Nxc6 {[%clk 0:02:46.2]} 10... bxc6 {[%clk 0:02:27.6]}
11. O-O {[%clk 0:02:45.7]} 11... Bd6 {[%clk 0:02:25.8]} 12. Nf3 {[%clk
0:02:17.9]} 12... O-O {[%clk 0:02:20.5]} 13. Be3 {[%clk 0:02:16.8]} 13... Qh5
{[%clk 0:02:18.5]} 14. h3 {[%clk 0:02:11]} 14... c5 {[%clk 0:01:53.4]} 15. Rad1
{[%clk 0:02:00.6]} 15... Rb8 {[%clk 0:01:14.4]} 16. Qc2 {[%clk 0:01:59.6]} 16...
Bc7 {[%clk 0:01:05.7]} 17. Be2 {[%clk 0:01:54.8]} 17... Bb7 {[%clk 0:00:59.5]}
18. Ng5 {[%clk 0:01:52.7]} 18... Qh4 {[%clk 0:00:54.2]} 19. Nf3 {[%clk
0:01:07.9]} 19... Qe4 {[%clk 0:00:53.3]} 20. Qxe4 {[%clk 0:01:07.7]} 20... Nxe4
{[%clk 0:00:54.2]} 21. Rd7 {[%clk 0:01:05.9]} 21... Rbc8 {[%clk 0:00:26.3]} 22.
Rfd1 {[%clk 0:00:55]} 22... Bc6 {[%clk 0:00:24.7]} 23. Ba6 {[%clk 0:00:55.1]}
23... Bxd7 {[%clk 0:00:07.6]} 24. Rxd7 {[%clk 0:00:56]} 24... Nf6 {[%clk
0:00:08.3]} 25. Bxc8 {[%clk 0:00:54.5]} 25... Rxc8 {[%clk 0:00:09.2]} 26. Rd1
{[%clk 0:00:49.1]} 1-0

[Event "Early-Titled-Tuesday-Blitz-March-19-2024"]
[Site "Chess.com"]
[Date "2024.03.19"]
[Round "11"]
[White "Bauman_Guy"]
[Black "ActorXu"]
[Result "0-1"]
[WhiteElo "2918"]
[BlackElo "2848"]
[TimeControl "180+1"]
[EndTime "10:05:27 PDT"]
[Termination "ActorXu won by resignation"]

1. e4 {[%clk 0:03:00.9]} 1... c5 {[%clk 0:02:45.1]} 2. Nf3 {[%clk 0:03:01]} 2...
e6 {[%clk 0:02:43.5]} 3. d4 {[%clk 0:03:01.6]} 3... cxd4 {[%clk 0:02:43.5]} 4.
Nxd4 {[%clk 0:03:02.5]} 4... Nc6 {[%clk 0:02:43.9]} 5. Nc3 {[%clk 0:03:02.7]}
5... Nf6 {[%clk 0:02:44.2]} 6. Ndb5 {[%clk 0:03:02.8]} 6... Bc5 {[%clk
0:02:43.3]} 7. Nd6+ {[%clk 0:03:02.8]} 7... Ke7 {[%clk 0:02:43.3]} 8. Bf4 {[%clk
0:03:02.9]} 8... e5 {[%clk 0:02:43]} 9. Nf5+ {[%clk 0:03:03.5]} 9... Kf8 {[%clk
0:02:43.2]} 10. Bg5 {[%clk 0:03:04.4]} 10... Bb4 {[%clk 0:02:38.2]} 11. Bc4
{[%clk 0:03:03.6]} 11... d5 {[%clk 0:02:37]} 12. Bxf6 {[%clk 0:03:03.7]} 12...
gxf6 {[%clk 0:02:29.5]} 13. Bxd5 {[%clk 0:03:03.7]} 13... Bxf5 {[%clk
0:02:25.9]} 14. exf5 {[%clk 0:03:03.9]} 14... Nd4 {[%clk 0:02:23.3]} 15. Be4
{[%clk 0:02:55.2]} 15... Rc8 {[%clk 0:01:58.3]} 16. O-O {[%clk 0:02:53.4]} 16...
Bxc3 {[%clk 0:01:57.3]} 17. bxc3 {[%clk 0:02:53.2]} 17... Rxc3 {[%clk
0:01:57.4]} 18. Rb1 {[%clk 0:02:52.2]} 18... b6 {[%clk 0:01:54.7]} 19. a4 {[%clk
0:02:30.5]} 19... h5 {[%clk 0:01:48]} 20. a5 {[%clk 0:02:29.8]} 20... h4 {[%clk
0:01:44.1]} 21. axb6 {[%clk 0:02:28.8]} 21... axb6 {[%clk 0:01:45]} 22. Ra1
{[%clk 0:02:27.7]} 22... h3 {[%clk 0:01:33]} 23. g3 {[%clk 0:02:20.5]} 23... Ke7
{[%clk 0:01:23.5]} 24. Qg4 {[%clk 0:02:01.9]} 24... Qd6 {[%clk 0:01:19.1]} 25.
Ra7+ {[%clk 0:01:51.6]} 25... Rc7 {[%clk 0:01:18.2]} 26. Rfa1 {[%clk 0:01:51.6]}
26... Rc8 {[%clk 0:01:17.4]} 27. Qxh3 {[%clk 0:01:50.5]} 27... Rxa7 {[%clk
0:01:14.7]} 28. Rxa7+ {[%clk 0:01:49.9]} 28... Rc7 {[%clk 0:01:15.4]} 29. Ra8
{[%clk 0:01:49.7]} 29... Qb4 {[%clk 0:01:14.3]} 30. Kg2 {[%clk 0:01:02.9]} 30...
Qe1 {[%clk 0:01:10.4]} 31. Qg4 {[%clk 0:00:46.1]} 31... Nxc2 {[%clk 0:01:07]}
32. Qf3 {[%clk 0:00:28.7]} 32... Qc1 {[%clk 0:00:47.6]} 33. h4 {[%clk
0:00:21.9]} 33... Ne1+ {[%clk 0:00:47.4]} 0-1

[Event "Early-Titled-Tuesday-Blitz-March-19-2024"]
[Site "Chess.com"]
[Date "2024.03.19"]
[Round "11"]
[White "MaxLeto"]
[Black "VladimirBugayev"]
[Result "1-0"]
[WhiteElo "2500"]
[BlackElo "2347"]
[TimeControl "180+1"]
[EndTime "10:05:28 PDT"]
[Termination "MaxLeto won on time"]

1. a3 {[%clk 0:02:59.4]} 1... g6 {[%clk 0:02:52.9]} 2. b3 {[%clk 0:03:00.3]}
2... Bg7 {[%clk 0:02:53.1]} 3. c3 {[%clk 0:03:01.2]} 3... a5 {[%clk 0:02:52.8]}
4. d3 {[%clk 0:03:02.1]} 4... e5 {[%clk 0:02:50.5]} 5. e3 {[%clk 0:03:03]} 5...
d5 {[%clk 0:02:49.4]} 6. f3 {[%clk 0:03:03.9]} 6... Ne7 {[%clk 0:02:49.3]} 7. g3
{[%clk 0:03:04.8]} 7... c5 {[%clk 0:02:49.3]} 8. h3 {[%clk 0:03:05.7]} 8... Nbc6
{[%clk 0:02:49.7]} 9. Bb2 {[%clk 0:03:01.1]} 9... O-O {[%clk 0:02:46.7]} 10. Bg2
{[%clk 0:03:01.6]} 10... b5 {[%clk 0:02:41.3]} 11. Ne2 {[%clk 0:03:01.7]} 11...
Be6 {[%clk 0:02:36.8]} 12. Nd2 {[%clk 0:03:02]} 12... a4 {[%clk 0:02:23.2]} 13.
b4 {[%clk 0:02:59.2]} 13... c4 {[%clk 0:02:22.8]} 14. d4 {[%clk 0:02:56.3]}
14... f6 {[%clk 0:02:11.7]} 15. Qc2 {[%clk 0:02:45.9]} 15... Bf5 {[%clk
0:01:59.8]} 16. e4 {[%clk 0:02:25.8]} 16... exd4 {[%clk 0:01:50]} 17. cxd4
{[%clk 0:02:14.9]} 17... Be6 {[%clk 0:01:38.7]} 18. O-O-O {[%clk 0:01:59.9]}
18... Bh6 {[%clk 0:01:38]} 19. Kb1 {[%clk 0:01:56.7]} 19... f5 {[%clk
0:01:24.7]} 20. e5 {[%clk 0:01:51.8]} 20... Be3 {[%clk 0:01:04.4]} 21. f4 {[%clk
0:01:42.5]} 21... Bxd2 {[%clk 0:01:04]} 22. Qxd2 {[%clk 0:01:41.3]} 22... Rc8
{[%clk 0:00:46.7]} 23. Nc3 {[%clk 0:01:38.3]} 23... Qb6 {[%clk 0:00:39.6]} 24.
Qf2 {[%clk 0:01:34.8]} 24... Ra8 {[%clk 0:00:19.4]} 25. Ka2 {[%clk 0:01:31.1]}
25... Qb7 {[%clk 0:00:15.6]} 26. Bf3 {[%clk 0:01:29.7]} 26... Rfd8 {[%clk
0:00:12.9]} 27. g4 {[%clk 0:01:25.4]} 27... Rf8 {[%clk 0:00:11.1]} 28. g5 {[%clk
0:01:25.7]} 28... Rfd8 {[%clk 0:00:10.5]} 29. h4 {[%clk 0:01:26.1]} 29... Kf8
{[%clk 0:00:09.6]} 30. h5 {[%clk 0:01:26.6]} 30... Ke8 {[%clk 0:00:09.2]} 31.
hxg6 {[%clk 0:01:27.3]} 31... hxg6 {[%clk 0:00:09.9]} 32. Rh7 {[%clk 0:01:26.7]}
32... Kd7 {[%clk 0:00:09.1]} 33. Rdh1 {[%clk 0:01:26.3]} 33... Rac8 {[%clk
0:00:07.8]} 34. Rg7 {[%clk 0:01:25.6]} 34... Kc7 {[%clk 0:00:05.6]} 35. Rh6
{[%clk 0:01:24]} 35... Rg8 {[%clk 0:00:03.5]} 36. Rhxg6 {[%clk 0:01:23.3]} 36...
Rxg7 {[%clk 0:00:03.4]} 37. Rxg7 {[%clk 0:01:24.2]} 37... Rh8 {[%clk 0:00:02.9]}
38. Nxd5+ {[%clk 0:01:18.4]} 38... Bxd5 {[%clk 0:00:02.9]} 39. Bxd5 {[%clk
0:01:19.3]} 39... Kb6 {[%clk 0:00:02.5]} 40. Bxc6 {[%clk 0:01:15.6]} 40... Qxc6
{[%clk 0:00:01.4]} 41. d5+ {[%clk 0:01:15.8]} 1-0

[Event "Early-Titled-Tuesday-Blitz-March-19-2024"]
[Site "Chess.com"]
[Date "2024.03.19"]
[Round "11"]
[White "emeli_chess"]
[Black "Mikhail_Bryakin"]
[Result "0-1"]
[WhiteElo "2421"]
[BlackElo "2704"]
[TimeControl "180+1"]
[EndTime "10:05:34 PDT"]
[Termination "Mikhail_Bryakin won on time"]

1. d4 {[%clk 0:03:00.9]} 1... e5 {[%clk 0:02:57.4]} 2. dxe5 {[%clk 0:03:00.6]}
2... Nc6 {[%clk 0:02:58.1]} 3. Nf3 {[%clk 0:03:00]} 3... Qe7 {[%clk 0:02:58.7]}
4. Bg5 {[%clk 0:02:58.6]} 4... Qb4+ {[%clk 0:02:59.4]} 5. Bd2 {[%clk 0:02:57.1]}
5... Qxb2 {[%clk 0:02:59.6]} 6. Nc3 {[%clk 0:02:54.8]} 6... Bb4 {[%clk
0:03:00.2]} 7. Rb1 {[%clk 0:02:51.6]} 7... Qa3 {[%clk 0:03:00.5]} 8. Rb3 {[%clk
0:02:51.3]} 8... Qa5 {[%clk 0:03:00.3]} 9. e4 {[%clk 0:02:50.1]} 9... d6 {[%clk
0:02:56.3]} 10. exd6 {[%clk 0:02:41]} 10... Be6 {[%clk 0:02:57]} 11. Nd5 {[%clk
0:02:33.2]} 11... Bxd2+ {[%clk 0:02:55.8]} 12. Qxd2 {[%clk 0:02:31.2]} 12...
Bxd5 {[%clk 0:02:50.8]} 13. exd5 {[%clk 0:02:26.2]} 13... Qxd2+ {[%clk
0:02:49.9]} 14. Nxd2 {[%clk 0:02:18.8]} 14... Na5 {[%clk 0:02:47]} 15. Re3+
{[%clk 0:02:17.8]} 15... Kd7 {[%clk 0:02:45.5]} 16. dxc7 {[%clk 0:02:10.8]}
16... Nf6 {[%clk 0:02:45.1]} 17. c4 {[%clk 0:02:03.1]} 17... Rhe8 {[%clk
0:02:45.6]} 18. Nb3 {[%clk 0:01:58.6]} 18... Nxb3 {[%clk 0:02:43.2]} 19. axb3
{[%clk 0:01:58.3]} 19... Kxc7 {[%clk 0:02:43.9]} 20. Bd3 {[%clk 0:01:53.5]}
20... Rxe3+ {[%clk 0:02:43.3]} 21. fxe3 {[%clk 0:01:53.4]} 21... Re8 {[%clk
0:02:44.2]} 22. Kd2 {[%clk 0:01:52.2]} 22... Ng4 {[%clk 0:02:44.9]} 23. e4
{[%clk 0:01:31.8]} 23... Kd6 {[%clk 0:02:34.4]} 24. Ra1 {[%clk 0:01:19.3]} 24...
a6 {[%clk 0:02:34.4]} 25. b4 {[%clk 0:01:19.1]} 25... Ke5 {[%clk 0:02:34.1]} 26.
Kc3 {[%clk 0:01:14.8]} 26... Nxh2 {[%clk 0:02:32.5]} 27. Rh1 {[%clk 0:00:54.3]}
27... Ng4 {[%clk 0:02:32.8]} 28. Rxh7 {[%clk 0:00:54.1]} 28... Rg8 {[%clk
0:02:32.1]} 29. Rh1 {[%clk 0:00:42.5]} 29... Ne3 {[%clk 0:02:28]} 30. c5 {[%clk
0:00:23.1]} 30... Nxg2 {[%clk 0:02:26.2]} 31. d6 {[%clk 0:00:18.2]} 31... Nf4
{[%clk 0:02:24.9]} 32. Bc4 {[%clk 0:00:17.4]} 32... Rf8 {[%clk 0:02:24.3]} 33.
Rd1 {[%clk 0:00:10.2]} 33... f6 {[%clk 0:02:22.7]} 34. d7 {[%clk 0:00:08]} 34...
Rd8 {[%clk 0:02:23.3]} 35. b5 {[%clk 0:00:08.3]} 35... axb5 {[%clk 0:02:21.8]}
36. Bxb5 {[%clk 0:00:08.8]} 36... g5 {[%clk 0:02:16.8]} 37. c6 {[%clk
0:00:08.8]} 37... bxc6 {[%clk 0:02:16.9]} 38. Bxc6 {[%clk 0:00:09.2]} 38... g4
{[%clk 0:02:17.8]} 39. Kc4 {[%clk 0:00:07.9]} 39... g3 {[%clk 0:02:17.3]} 40.
Kc5 {[%clk 0:00:08.1]} 40... g2 {[%clk 0:02:17.3]} 41. Kb6 {[%clk 0:00:08.1]}
41... Ne2 {[%clk 0:02:17.5]} 42. Kc7 {[%clk 0:00:07.7]} 42... Rh8 {[%clk
0:02:17.5]} 43. Re1 {[%clk 0:00:06.9]} 43... Nd4 {[%clk 0:02:14]} 44. d8=Q
{[%clk 0:00:06.5]} 44... Rxd8 {[%clk 0:02:13.6]} 45. Kxd8 {[%clk 0:00:07]} 45...
Nf3 {[%clk 0:02:04.5]} 46. Rc1 {[%clk 0:00:06.3]} 46... g1=Q {[%clk 0:01:57.5]}
47. Rxg1 {[%clk 0:00:05.7]} 47... Nxg1 {[%clk 0:01:58.4]} 48. Ke7 {[%clk
0:00:05.7]} 48... Nf3 {[%clk 0:01:59.3]} 49. Kf7 {[%clk 0:00:05.3]} 49... Nd4
{[%clk 0:02:00.2]} 50. Bb7 {[%clk 0:00:04.9]} 50... Ne2 {[%clk 0:02:01.1]} 51.
Kg6 {[%clk 0:00:04.8]} 51... Nf4+ {[%clk 0:02:02]} 52. Kh6 {[%clk 0:00:04.8]}
52... Ne6 {[%clk 0:02:02.9]} 53. Kh5 {[%clk 0:00:04.8]} 53... Nc5 {[%clk
0:02:03.2]} 54. Ba8 {[%clk 0:00:04.4]} 54... Nxe4 {[%clk 0:02:04.1]} 55. Kg4
{[%clk 0:00:03.5]} 55... f5+ {[%clk 0:02:03.4]} 56. Kf3 {[%clk 0:00:03.8]} 56...
Nf6 {[%clk 0:02:02.5]} 57. Kf2 {[%clk 0:00:03.8]} 57... Kf4 {[%clk 0:02:02.8]}
58. Bb7 {[%clk 0:00:03.7]} 58... Ng4+ {[%clk 0:02:02.6]} 59. Kg2 {[%clk
0:00:03.7]} 59... Ne3+ {[%clk 0:02:03.5]} 60. Kf2 {[%clk 0:00:04.1]} 60... Nc4
{[%clk 0:02:04.2]} 61. Kg2 {[%clk 0:00:03.4]} 61... Ke3 {[%clk 0:02:04.5]} 62.
Bc6 {[%clk 0:00:02.4]} 62... Nd2 {[%clk 0:02:04.8]} 63. Bb7 {[%clk 0:00:02]}
63... Ne4 {[%clk 0:02:04.8]} 0-1

[Event "Early-Titled-Tuesday-Blitz-March-19-2024"]
[Site "Chess.com"]
[Date "2024.03.19"]
[Round "11"]
[White "Navyblue1"]
[Black "GrotBchess"]
[Result "0-1"]
[WhiteElo "2214"]
[BlackElo "2409"]
[TimeControl "180+1"]
[EndTime "10:05:34 PDT"]
[Termination "GrotBchess won by resignation"]

1. d4 {[%clk 0:03:00.9]} 1... Nf6 {[%clk 0:02:59.4]} 2. c4 {[%clk 0:03:01.2]}
2... g6 {[%clk 0:02:59.6]} 3. Nc3 {[%clk 0:03:00.4]} 3... d5 {[%clk 0:02:58.5]}
4. Nf3 {[%clk 0:02:59.4]} 4... Bg7 {[%clk 0:02:58.1]} 5. Qb3 {[%clk 0:02:58.5]}
5... dxc4 {[%clk 0:02:56.9]} 6. Qxc4 {[%clk 0:02:59.4]} 6... Be6 {[%clk
0:02:57.4]} 7. Qb5+ {[%clk 0:02:58.1]} 7... Bd7 {[%clk 0:02:54.6]} 8. Qxb7
{[%clk 0:02:57.2]} 8... Nc6 {[%clk 0:02:54.5]} 9. Qb3 {[%clk 0:02:51.6]} 9...
Rb8 {[%clk 0:02:53.4]} 10. Qd1 {[%clk 0:02:49.3]} 10... O-O {[%clk 0:02:51.9]}
11. e3 {[%clk 0:02:49.3]} 11... Bf5 {[%clk 0:02:46.9]} 12. a3 {[%clk 0:02:14.5]}
12... e5 {[%clk 0:02:45.8]} 13. dxe5 {[%clk 0:02:07.8]} 13... Qxd1+ {[%clk
0:02:43.2]} 14. Nxd1 {[%clk 0:02:07.6]} 14... Ng4 {[%clk 0:02:41.6]} 15. Be2
{[%clk 0:02:03.3]} 15... Ngxe5 {[%clk 0:02:40.8]} 16. O-O {[%clk 0:01:57.3]}
16... Rfd8 {[%clk 0:02:39.7]} 17. Nc3 {[%clk 0:01:55.9]} 17... Nd3 {[%clk
0:02:38.4]} 18. Bxd3 {[%clk 0:01:53.9]} 18... Bxd3 {[%clk 0:02:39.3]} 19. Re1
{[%clk 0:01:48.5]} 19... Na5 {[%clk 0:02:37.2]} 20. Nd2 {[%clk 0:01:47]} 20...
Bc2 {[%clk 0:02:29.1]} 21. Ra2 {[%clk 0:01:31.9]} 21... Nb3 {[%clk 0:02:20.7]}
22. Nxb3 {[%clk 0:01:31.4]} 22... Rxb3 {[%clk 0:02:21.5]} 23. Ne2 {[%clk
0:01:15.7]} 23... Rd1 {[%clk 0:02:06.2]} 24. Rxd1 {[%clk 0:01:11.7]} 24... Bxd1
{[%clk 0:02:07.1]} 25. Kf1 {[%clk 0:00:57.8]} 25... Bc2 {[%clk 0:01:59.6]} 26.
f3 {[%clk 0:00:42.4]} 26... Rd3 {[%clk 0:01:56.2]} 27. Kf2 {[%clk 0:00:38.4]}
27... Rd1 {[%clk 0:01:54.9]} 28. b4 {[%clk 0:00:36.4]} 28... Bd3 {[%clk
0:01:50]} 29. Bd2 {[%clk 0:00:33.6]} 29... Bc4 {[%clk 0:01:42.6]} 30. Rc2 {[%clk
0:00:24.4]} 30... Bb3 {[%clk 0:01:41.6]} 31. Nc3 {[%clk 0:00:15.6]} 31... Bxc2
{[%clk 0:01:38.9]} 32. Nxd1 {[%clk 0:00:15.6]} 32... Bxd1 {[%clk 0:01:39.8]} 33.
e4 {[%clk 0:00:15.8]} 33... Bb2 {[%clk 0:01:37.2]} 34. a4 {[%clk 0:00:15]} 34...
Bxa4 {[%clk 0:01:37.4]} 35. Be3 {[%clk 0:00:15.4]} 35... a6 {[%clk 0:01:36.9]}
36. Bc5 {[%clk 0:00:15.3]} 36... f6 {[%clk 0:01:35.2]} 37. f4 {[%clk 0:00:16.2]}
37... Kf7 {[%clk 0:01:35.4]} 38. Kf3 {[%clk 0:00:16.7]} 38... Ke6 {[%clk
0:01:35.5]} 39. g4 {[%clk 0:00:17.1]} 39... Bc3 {[%clk 0:01:34.3]} 40. Ke3
{[%clk 0:00:16.9]} 40... a5 {[%clk 0:01:33.5]} 41. bxa5 {[%clk 0:00:16.7]} 41...
Bxa5 {[%clk 0:01:34.4]} 42. Bd4 {[%clk 0:00:16.8]} 42... Bb6 {[%clk 0:01:34.8]}
43. f5+ {[%clk 0:00:16.5]} 43... Kf7 {[%clk 0:01:34.3]} 44. h4 {[%clk
0:00:15.9]} 44... Bxd4+ {[%clk 0:01:33.8]} 45. Kxd4 {[%clk 0:00:16]} 45... Bd1
{[%clk 0:01:34.1]} 46. g5 {[%clk 0:00:16]} 46... gxf5 {[%clk 0:01:34.2]} 47.
exf5 {[%clk 0:00:15.9]} 47... Bc2 {[%clk 0:01:31.9]} 48. Kc5 {[%clk 0:00:15.1]}
48... Bxf5 {[%clk 0:01:30.3]} 49. gxf6 {[%clk 0:00:15.5]} 49... Kxf6 {[%clk
0:01:29.7]} 50. Kc6 {[%clk 0:00:16.4]} 50... Kg6 {[%clk 0:01:30.2]} 51. Kxc7
{[%clk 0:00:17.3]} 51... Kh5 {[%clk 0:01:30.8]} 52. Kd6 {[%clk 0:00:18.2]} 52...
Kxh4 {[%clk 0:01:31.2]} 53. Ke5 {[%clk 0:00:19.1]} 53... Kg5 {[%clk 0:01:31.8]}
54. Kd4 {[%clk 0:00:19.1]} 54... Kf4 {[%clk 0:01:30.5]} 55. Kc3 {[%clk 0:00:19]}
55... h5 {[%clk 0:01:30.2]} 56. Kd2 {[%clk 0:00:19.9]} 56... Kg3 {[%clk
0:01:30.1]} 57. Ke1 {[%clk 0:00:20.8]} 57... Kg2 {[%clk 0:01:30.3]} 58. Ke2
{[%clk 0:00:21]} 58... h4 {[%clk 0:01:31.2]} 59. Ke3 {[%clk 0:00:21.9]} 59... h3
{[%clk 0:01:32.1]} 0-1

[Event "Early-Titled-Tuesday-Blitz-March-19-2024"]
[Site "Chess.com"]
[Date "2024.03.19"]
[Round "11"]
[White "ahkashefi2800"]
[Black "AlexOstrovskiy"]
[Result "1-0"]
[WhiteElo "2613"]
[BlackElo "2726"]
[TimeControl "180+1"]
[EndTime "10:05:38 PDT"]
[Termination "ahkashefi2800 won on time"]

1. d4 {[%clk 0:03:00.3]} 1... Nf6 {[%clk 0:02:58.7]} 2. Nf3 {[%clk 0:03:00.2]}
2... c5 {[%clk 0:02:55.3]} 3. e3 {[%clk 0:02:58.9]} 3... d5 {[%clk 0:02:55.2]}
4. Bd3 {[%clk 0:02:58.5]} 4... Nbd7 {[%clk 0:02:42.7]} 5. c3 {[%clk 0:02:58.4]}
5... g6 {[%clk 0:02:43]} 6. Nbd2 {[%clk 0:02:58.4]} 6... Bg7 {[%clk 0:02:43.7]}
7. O-O {[%clk 0:02:58.2]} 7... O-O {[%clk 0:02:44.3]} 8. Re1 {[%clk 0:02:58.5]}
8... b6 {[%clk 0:02:42.1]} 9. b3 {[%clk 0:02:58.7]} 9... Bb7 {[%clk 0:02:42.3]}
10. Bb2 {[%clk 0:02:59.2]} 10... Rc8 {[%clk 0:02:42.8]} 11. Rc1 {[%clk
0:02:59.4]} 11... Re8 {[%clk 0:02:42.6]} 12. c4 {[%clk 0:02:58.5]} 12... e6
{[%clk 0:02:30.7]} 13. Bb1 {[%clk 0:02:57.9]} 13... cxd4 {[%clk 0:02:18.6]} 14.
Nxd4 {[%clk 0:02:55.8]} 14... e5 {[%clk 0:02:16.3]} 15. Nb5 {[%clk 0:02:55.8]}
15... Nc5 {[%clk 0:01:45.5]} 16. Nxa7 {[%clk 0:02:52.9]} 16... Rc7 {[%clk
0:01:45.7]} 17. Nb5 {[%clk 0:02:52.3]} 17... Rd7 {[%clk 0:01:46.2]} 18. Qe2
{[%clk 0:02:43.4]} 18... d4 {[%clk 0:01:37.3]} 19. exd4 {[%clk 0:02:31.7]} 19...
exd4 {[%clk 0:01:36.9]} 20. Qf1 {[%clk 0:02:32]} 20... Rxe1 {[%clk 0:01:28.4]}
21. Rxe1 {[%clk 0:02:31.8]} 21... Nh5 {[%clk 0:01:29.3]} 22. Ne4 {[%clk
0:02:28.9]} 22... Nf4 {[%clk 0:01:22]} 23. g3 {[%clk 0:02:25.9]} 23... Nfe6
{[%clk 0:01:16.6]} 24. Nxc5 {[%clk 0:02:19.8]} 24... bxc5 {[%clk 0:01:16]} 25.
Bd3 {[%clk 0:02:14.2]} 25... h5 {[%clk 0:01:02]} 26. h4 {[%clk 0:02:13.1]} 26...
g5 {[%clk 0:00:41.3]} 27. Qh3 {[%clk 0:02:12.8]} 27... gxh4 {[%clk 0:00:25.8]}
28. Rxe6 {[%clk 0:02:11.9]} 28... fxe6 {[%clk 0:00:22.3]} 29. Qxe6+ {[%clk
0:02:10.7]} 29... Kf8 {[%clk 0:00:22.4]} 30. Ba3 {[%clk 0:02:10.7]} 30... Qe7
{[%clk 0:00:03.6]} 31. Qf5+ {[%clk 0:02:10.3]} 31... Kg8 {[%clk 0:00:02.3]} 32.
Qh7+ {[%clk 0:02:04.7]} 32... Kf8 {[%clk 0:00:02.9]} 33. Qf5+ {[%clk 0:02:00.1]}
33... Kg8 {[%clk 0:00:03.4]} 34. Kh2 {[%clk 0:01:37.1]} 34... hxg3+ {[%clk
0:00:03.4]} 35. fxg3 {[%clk 0:01:37]} 35... Qe3 {[%clk 0:00:03.7]} 36. Qh7+
{[%clk 0:01:19.2]} 36... Kf7 {[%clk 0:00:03.8]} 37. Qxh5+ {[%clk 0:01:19]} 37...
Ke7 {[%clk 0:00:03]} 38. Bxc5+ {[%clk 0:01:18.3]} 38... Kd8 {[%clk 0:00:03.6]}
39. Bb6+ {[%clk 0:01:16]} 39... Kc8 {[%clk 0:00:03]} 40. Qc5+ {[%clk 0:01:14.4]}
40... Kb8 {[%clk 0:00:02.5]} 41. Bc7+ {[%clk 0:01:14.5]} 41... Rxc7 {[%clk
0:00:02.2]} 42. Qxc7+ {[%clk 0:01:14.4]} 42... Ka8 {[%clk 0:00:03]} 43. Qd8+
{[%clk 0:01:14.9]} 1-0